fUST/lending_fUST_20260507
["ID","MTS","AMOUNT","RATE_DAILY","PERIOD"]
[421739278,1778086249000,-1133.78,0.00010958,2]
[421739348,1778086249000,-500.0,0.00010958,2]
[421739383,1778086249000,-500.0,0.00010958,2]
[421739354,1778086249000,-500.0,0.00010958,2]
[421739424,1778086249000,-972.1723614,0.00010992,2]
[421739430,1778086249000,-500.0,0.00011132,2]
[421739435,1778086249000,-219.89901431,0.00011165,2]
[421739443,1778086249000,-666.5806,0.00011232,2]
[421739432,1778086249000,-176.83143619,0.00011165,2]
[421739428,1778086249000,-160.0,0.00011121,2]
[421739437,1778086249000,-200.0,0.00011172,2]
[421739445,1778086249000,-426.29,0.00011232,2]
[421739441,1778086249000,-873.5339,0.00011232,2]
[421739439,1778086249000,-200.0,0.00011172,2]
[421739447,1778086249000,-500.0,0.00011232,2]
[421739451,1778086249000,-381.73,0.00011232,2]
[421739453,1778086249000,-255.44,0.00011232,2]
[421739426,1778086249000,-161.57016804,0.00011121,2]
[421739365,1778086249000,-500.0,0.00010958,2]
[421739457,1778086249000,-324.58,0.00011232,2]
[421739455,1778086249000,-500.0,0.00011232,2]
[421739467,1778086249000,-279.2,0.00011232,2]
[421739469,1778086249000,-500.0,0.00011232,2]
[421739471,1778086249000,-291.15,0.00011232,2]
[421739465,1778086249000,-500.0,0.00011232,2]
[421739463,1778086249000,-500.0,0.00011232,2]
[421739461,1778086249000,-162.62,0.00011232,2]
[421739473,1778086249000,-500.0,0.00011232,2]
[421739477,1778086249000,-500.0,0.00011232,2]
[421739479,1778086249000,-611.63,0.00011232,2]
[421739475,1778086249000,-500.0,0.00011232,2]
[421739481,1778086249000,-500.0,0.00011232,2]
[421739449,1778086249000,-500.0,0.00011232,2]
[421739422,1778086249000,-382.13263588,0.00010959,2]
[421739459,1778086249000,-500.0,0.00011232,2]
[421739405,1778086249000,-500.0,0.00010958,2]
[421739411,1778086249000,-500.0,0.00010958,2]
[421739359,1778086249000,-500.0,0.00010958,2]
[421739363,1778086249000,-964.65,0.00010958,2]
[421739361,1778086249000,-531.72,0.00010958,2]
[421739357,1778086249000,-500.0,0.00010958,2]
[421739352,1778086249000,-1448.52,0.00010958,2]
[421739369,1778086249000,-500.0,0.00010958,2]
[421739350,1778086249000,-927.6,0.00010958,2]
[421739356,1778086249000,-500.0,0.00010958,2]
[421739367,1778086249000,-625.16,0.00010958,2]
[421739385,1778086249000,-1435.27,0.00010958,2]
[421739387,1778086249000,-500.0,0.00010958,2]
[421739377,1778086249000,-570.6,0.00010958,2]
[421739389,1778086249000,-501.28914335,0.00010958,2]
[421739371,1778086249000,-742.55,0.00010958,2]
[421739381,1778086249000,-1439.55,0.00010958,2]
[421739420,1778086249000,-500.0,0.00010959,2]
[421739393,1778086249000,-500.0,0.00010958,2]
[421739403,1778086249000,-585.45,0.00010958,2]
[421739409,1778086249000,-500.0,0.00010958,2]
[421739407,1778086249000,-500.0,0.00010958,2]
[421739413,1778086249000,-500.0,0.00010959,2]
[421739399,1778086249000,-299.3123269,0.00010958,2]
[421739401,1778086249000,-500.0,0.00010958,2]
[421739397,1778086249000,-501.12191552,0.00010958,2]
[421739375,1778086249000,-1178.16,0.00010958,2]
[421739379,1778086249000,-522.98,0.00010958,2]
[421739391,1778086249000,-500.0,0.00010958,2]
[421739373,1778086249000,-501.15726628,0.00010958,2]
[421739395,1778086249000,-501.1825835,0.00010958,2]
[421739507,1778086250000,-500.0,0.00011232,2]
[421739532,1778086250000,-500.0,0.00011232,2]
[421739503,1778086250000,-500.0,0.00011232,2]
[421739522,1778086250000,-664.98,0.00011232,2]
[421739524,1778086250000,-617.42,0.00011232,2]
[421739526,1778086250000,-556.4,0.00011232,2]
[421739542,1778086250000,-226.95,0.00011232,2]
[421739536,1778086250000,-1133.78,0.00011232,2]
[421739538,1778086250000,-317.4,0.00011232,2]
[421739540,1778086250000,-920.26,0.00011232,2]
[421739530,1778086250000,-500.0,0.00011232,2]
[421739534,1778086250000,-500.0,0.00011232,2]
[421739518,1778086250000,-642.59,0.00011232,2]
[421739528,1778086250000,-500.0,0.00011232,2]
[421739505,1778086250000,-203.81,0.00011232,2]
[421739483,1778086250000,-337.32,0.00011232,2]
[421739513,1778086250000,-281.84,0.00011232,2]
[421739501,1778086250000,-500.0,0.00011232,2]
[421739497,1778086250000,-500.0,0.00011232,2]
[421739515,1778086250000,-500.0,0.00011232,2]
[421739516,1778086250000,-500.0,0.00011232,2]
[421739511,1778086250000,-335.11,0.00011232,2]
[421739509,1778086250000,-188.13,0.00011232,2]
[421739493,1778086250000,-500.0,0.00011232,2]
[421739495,1778086250000,-250.06,0.00011232,2]
[421739487,1778086250000,-500.0,0.00011232,2]
[421739491,1778086250000,-500.0,0.00011232,2]
[421739489,1778086250000,-500.0,0.00011232,2]
[421739485,1778086250000,-529.42,0.00011232,2]
[421739546,1778086250000,-500.0,0.00011232,2]
[421739499,1778086250000,-500.0,0.00011232,2]
[421739544,1778086250000,-517.23,0.00011232,2]
[421739520,1778086250000,-500.0,0.00011232,2]
[421739553,1778086250000,-3018.73071429,0.00011232,2]
[421739588,1778086250000,-574.59880735,0.00011232,2]
[421739584,1778086250000,-500.0,0.00011232,2]
[421739582,1778086250000,-500.0,0.00011232,2]
[421739596,1778086250000,-500.0,0.00011232,2]
[421739600,1778086250000,-336.04,0.00011232,2]
[421739598,1778086250000,-964.65,0.00011232,2]
[421739586,1778086250000,-927.6,0.00011232,2]
[421739608,1778086250000,-189.94,0.00011232,2]
[421739612,1778086250000,-185.77,0.00011232,2]
[421739610,1778086250000,-1435.27,0.00011232,2]
[421739604,1778086250000,-1178.16,0.00011232,2]
[421739602,1778086250000,-742.55,0.00011232,2]
[421739616,1778086250000,-39.21209493,0.00011232,2]
[421739550,1778086250000,-1853.11928571,0.00011232,2]
[421739614,1778086250000,-460.78790507,0.00011232,2]
[421739592,1778086250000,-873.92119265,0.00011232,2]
[421739606,1778086250000,-1439.55,0.00011232,2]
[421739580,1778086250000,-500.0,0.00011232,2]
[421739577,1778086250000,-620.41,0.00011232,2]
[421739618,1778086250000,-264.78790507,0.00011232,2]
[421739574,1778086250000,-500.0,0.00011232,2]
[421739575,1778086250000,-500.0,0.00011232,2]
[421739572,1778086250000,-500.0,0.00011232,2]
[421739566,1778086250000,-500.0,0.00011232,2]
[421739570,1778086250000,-500.0,0.00011232,2]
[421739564,1778086250000,-309.97,0.00011232,2]
[421739568,1778086250000,-500.0,0.00011232,2]
[421739560,1778086250000,-981.74880735,0.00011232,2]
[421739558,1778086250000,-500.0,0.00011232,2]
[421739548,1778086250000,-563.95,0.00011232,2]
[421739594,1778086250000,-500.0,0.00011232,2]
[421739555,1778086250000,-570.0,0.00011232,2]
[421739562,1778086250000,-67.42119265,0.00011232,2]
[421739802,1778087431000,-1466.30417787,8.803e-05,2]
[421739799,1778087431000,-338.712,8.803e-05,2]
[421739987,1778087438000,-1247.6111807,0.00010698,2]
[421739971,1778087438000,-1169.63548191,0.00010698,2]
[421739964,1778087438000,-1169.63548191,0.00010698,2]
[421739975,1778087438000,-1169.63548191,0.00010698,2]
[421739986,1778087438000,-1247.6111807,0.00010698,2]
[421739962,1778087438000,-316.06565215,0.00010698,2]
[421739977,1778087438000,-1169.63548191,0.00010698,2]
[421739976,1778087438000,-1169.63548191,0.00010698,2]
[421739978,1778087438000,-1169.63548191,0.00010698,2]
[421739979,1778087438000,-1169.63548191,0.00010698,2]
[421739980,1778087438000,-1247.6111807,0.00010698,2]
[421739984,1778087438000,-1247.6111807,0.00010698,2]
[421739983,1778087438000,-1247.6111807,0.00010698,2]
[421739995,1778087438000,-269.77,0.00010958,2]
[421739985,1778087438000,-1247.6111807,0.00010698,2]
[421739988,1778087438000,-1247.6111807,0.00010698,2]
[421739990,1778087438000,-82107.73492908,0.00010699,2]
[421739992,1778087438000,-7617.62041702,0.00010858,2]
[421739989,1778087438000,-200437.52376721,0.00010699,2]
[421739991,1778087438000,-161.10030561,0.00010758,2]
[421739993,1778087438000,-445.2,0.00010958,2]
[421739997,1778087438000,-500.0,0.00010958,2]
[421739996,1778087438000,-277.45,0.00010958,2]
[421739994,1778087438000,-158.05,0.00010958,2]
[421739999,1778087438000,-500.0,0.00010958,2]
[421739970,1778087438000,-1169.63548191,0.00010698,2]
[421739982,1778087438000,-1247.6111807,0.00010698,2]
[421739966,1778087438000,-1169.63548191,0.00010698,2]
[421739949,1778087438000,-10000.0,9.291e-05,2]
[421739963,1778087438000,-235.28471577,0.00010698,2]
[421739942,1778087438000,-323.91001145,8.892e-05,2]
[421739948,1778087438000,-1200.0,9.29e-05,2]
[421739941,1778087438000,-3194.98382213,8.803e-05,2]
[421739945,1778087438000,-300.0,9.29e-05,2]
[421739944,1778087438000,-300.0,9.29e-05,2]
[421739943,1778087438000,-275.56735824,9.028e-05,2]
[421739946,1778087438000,-300.0,9.29e-05,2]
[421739947,1778087438000,-300.0,9.29e-05,2]
[421739952,1778087438000,-200.0,0.0001017,2]
[421739960,1778087438000,-500.0,0.00010698,2]
[421739998,1778087438000,-560.66,0.00010958,2]
[421739955,1778087438000,-420.0,0.00010219,2]
[421739967,1778087438000,-1169.63548191,0.00010698,2]
[421739951,1778087438000,-300.0,0.00010114,11]
[421739950,1778087438000,-151.0,9.898e-05,2]
[421739956,1778087438000,-1680.0,0.00010219,2]
[421739961,1778087438000,-237.45222217,0.00010698,2]
[421739953,1778087438000,-200.84,0.0001017,7]
[421739959,1778087438000,-31025.1060747,0.00010697,2]
[421739957,1778087438000,-300.0,0.00010696,2]
[421739973,1778087438000,-1169.63548191,0.00010698,2]
[421739965,1778087438000,-1169.63548191,0.00010698,2]
[421739969,1778087438000,-1169.63548191,0.00010698,2]
[421739974,1778087438000,-1169.63548191,0.00010698,2]
[421739968,1778087438000,-1169.63548191,0.00010698,2]
[421739972,1778087438000,-1169.63548191,0.00010698,2]
[421739954,1778087438000,-325.6887141,0.00010199,2]
[421740001,1778087438000,-500.0,0.00010958,2]
[421739981,1778087438000,-1247.6111807,0.00010698,2]
[421740002,1778087438000,-500.0,0.00010958,2]
[421740032,1778087438000,-500.0,0.00010958,2]
[421740039,1778087438000,-568.71,0.00010958,2]
[421740038,1778087438000,-500.0,0.00010958,2]
[421740040,1778087438000,-500.0,0.00010958,2]
[421740036,1778087438000,-1364.22,0.00010958,2]
[421740035,1778087438000,-500.0,0.00010958,2]
[421740034,1778087438000,-500.0,0.00010958,2]
[421740042,1778087438000,-500.0,0.00010958,2]
[421740052,1778087438000,-336.04,0.00010958,2]
[421740044,1778087438000,-500.0,0.00010958,2]
[421740043,1778087438000,-500.0,0.00010958,2]
[421740053,1778087438000,-189.94,0.00010958,2]
[421740046,1778087438000,-500.0,0.00010958,2]
[421740045,1778087438000,-850.3,0.00010958,2]
[421740048,1778087438000,-924.46,0.00010958,2]
[421740051,1778087438000,-711.61,0.00010958,2]
[421740049,1778087438000,-1379.57,0.00010958,2]
[421740047,1778087438000,-187.93,0.00010958,2]
[421740050,1778087438000,-1375.47,0.00010958,2]
[421740054,1778087438000,-1129.07,0.00010958,2]
[421740056,1778087438000,-500.0,0.00010958,2]
[421740057,1778087438000,-500.0,0.00010958,2]
[421740058,1778087438000,-500.0,0.00010958,2]
[421740055,1778087438000,-185.77,0.00010958,2]
[421740059,1778087438000,-500.0,0.00010958,2]
[421740060,1778087438000,-561.05,0.00010958,2]
[421740000,1778087438000,-516.75,0.00010958,2]
[421740033,1778087438000,-152.18491576,0.00010958,2]
[421740037,1778087438000,-500.0,0.00010958,2]
[421740041,1778087438000,-500.0,0.00010958,2]
[421740031,1778087438000,-500.0,0.00010958,2]
[421740028,1778087438000,-500.0,0.00010958,2]
[421740013,1778087438000,-500.0,0.00010958,2]
[421740007,1778087438000,-500.0,0.00010958,2]
[421740011,1778087438000,-199.06,0.00010958,2]
[421740004,1778087438000,-500.0,0.00010958,2]
[421740008,1778087438000,-1370.764,0.00010958,2]
[421740010,1778087438000,-500.0,0.00010958,2]
[421740005,1778087438000,-500.0,0.00010958,2]
[421740012,1778087438000,-500.0,0.00010958,2]
[421740006,1778087438000,-500.0,0.00010958,2]
[421740009,1778087438000,-438.16,0.00010958,2]
[421740014,1778087438000,-500.0,0.00010958,2]
[421740025,1778087438000,-843.57,0.00010958,2]
[421740016,1778087438000,-500.0,0.00010958,2]
[421740003,1778087438000,-160.65,0.00010958,2]
[421740030,1778087438000,-522.5,0.00010958,2]
[421740015,1778087438000,-500.0,0.00010958,2]
[421740029,1778087438000,-500.0,0.00010958,2]
[421740027,1778087438000,-500.0,0.00010958,2]
[421740022,1778087438000,-500.0,0.00010958,2]
[421740024,1778087438000,-1039.3,0.00010958,2]
[421740019,1778087438000,-500.0,0.00010958,2]
[421740026,1778087438000,-961.74,0.00010958,2]
[421740020,1778087438000,-500.0,0.00010958,2]
[421740018,1778087438000,-500.0,0.00010958,2]
[421740017,1778087438000,-524.9,0.00010958,2]
[421740023,1778087438000,-500.0,0.00010958,2]
[421740021,1778087438000,-609.56,0.00010958,2]
[421740102,1778087439000,-500.0,0.00011232,2]
[421740101,1778087439000,-500.0,0.00011232,2]
[421740099,1778087439000,-522.5,0.00011232,2]
[421740100,1778087439000,-500.0,0.00011232,2]
[421740106,1778087439000,-500.0,0.00011232,2]
[421740090,1778087439000,-609.56,0.00011232,2]
[421740094,1778087439000,-843.57,0.00011232,2]
[421740096,1778087439000,-500.0,0.00011232,2]
[421740105,1778087439000,-315.73109538,0.00011232,2]
[421740095,1778087439000,-961.74,0.00011232,2]
[421740098,1778087439000,-567.12,0.00011232,2]
[421740091,1778087439000,-500.0,0.00011232,2]
[421740097,1778087439000,-500.0,0.00011232,2]
[421740104,1778087439000,-1364.22,0.00011232,2]
[421740110,1778087439000,-500.0,0.00011232,2]
[421740107,1778087439000,-568.71,0.00011232,2]
[421740109,1778087439000,-500.0,0.00011232,2]
[421740114,1778087439000,-500.0,0.00011232,2]
[421740118,1778087439000,-711.61,0.00011232,2]
[421740117,1778087439000,-1375.47,0.00011232,2]
[421740115,1778087439000,-924.46,0.00011232,2]
[421740112,1778087439000,-500.0,0.00011232,2]
[421740113,1778087439000,-850.3,0.00011232,2]
[421740111,1778087439000,-500.0,0.00011232,2]
[421740119,1778087439000,-1129.07,0.00011232,2]
[421740108,1778087439000,-500.0,0.00011232,2]
[421740116,1778087439000,-1379.57,0.00011232,2]
[421740128,1778087439000,-253.0,0.00011241,2]
[421740103,1778087439000,-500.0,0.00011232,2]
[421740087,1778087439000,-500.0,0.00011232,2]
[421740066,1778087439000,-1357.88911742,0.00011067,2]
[421740089,1778087439000,-500.0,0.00011232,2]
[421740121,1778087439000,-500.0,0.00011232,2]
[421740065,1778087439000,-256.15,0.00011036,2]
[421740062,1778087439000,-500.0,0.00010959,2]
[421740063,1778087439000,-467.49284512,0.00010959,2]
[421740061,1778087439000,-500.0,0.00010958,2]
[421740064,1778087439000,-325.16948273,0.00011028,2]
[421740077,1778087439000,-500.0,0.00011232,2]
[421740078,1778087439000,-500.0,0.00011232,2]
[421740079,1778087439000,-500.0,0.00011232,2]
[421740067,1778087439000,-161.57016804,0.00011098,2]
[421740075,1778087439000,-500.0,0.00011232,2]
[421740076,1778087439000,-500.0,0.00011232,2]
[421740068,1778087439000,-325.7282482,0.0001112,2]
[421740084,1778087439000,-500.0,0.00011232,2]
[421740070,1778087439000,-2081.0145002,0.00011232,2]
[421740069,1778087439000,-152.0,0.00011231,7]
[421740072,1778087439000,-560.66,0.00011232,2]
[421740071,1778087439000,-365.1,0.00011232,2]
[421740073,1778087439000,-485.07,0.00011232,2]
[421740080,1778087439000,-1370.764,0.00011232,2]
[421740081,1778087439000,-500.0,0.00011232,2]
[421740083,1778087439000,-500.0,0.00011232,2]
[421740086,1778087439000,-500.0,0.00011232,2]
[421740085,1778087439000,-500.0,0.00011232,2]
[421740093,1778087439000,-1039.3,0.00011232,2]
[421740082,1778087439000,-160.3,0.00011232,2]
[421740092,1778087439000,-500.0,0.00011232,2]
[421740088,1778087439000,-500.0,0.00011232,2]
[421740074,1778087439000,-500.0,0.00011232,2]
[421740129,1778087439000,-2351.0,0.00011241,2]
[421740170,1778087439000,-500.0,0.00011506,2]
[421740127,1778087439000,-152.0,0.00011234,30]
[421740164,1778087439000,-500.0,0.00011506,2]
[421740162,1778087439000,-500.0,0.00011506,2]
[421740158,1778087439000,-961.74,0.00011506,2]
[421740163,1778087439000,-500.0,0.00011506,2]
[421740161,1778087439000,-522.5,0.00011506,2]
[421740159,1778087439000,-500.0,0.00011506,2]
[421740160,1778087439000,-500.0,0.00011506,2]
[421740165,1778087439000,-500.0,0.00011506,2]
[421740168,1778087439000,-500.0,0.00011506,2]
[421740166,1778087439000,-1364.22,0.00011506,2]
[421740180,1778087439000,-711.61,0.00011506,2]
[421740181,1778087439000,-1129.07,0.00011506,2]
[421740183,1778087439000,-406.2477726,0.00011506,2]
[421740157,1778087439000,-843.57,0.00011506,2]
[421740178,1778087439000,-1379.57,0.00011506,2]
[421740169,1778087439000,-568.71,0.00011506,2]
[421740171,1778087439000,-500.0,0.00011506,2]
[421740172,1778087439000,-500.0,0.00011506,2]
[421740179,1778087439000,-1375.47,0.00011506,2]
[421740177,1778087439000,-924.46,0.00011506,2]
[421740173,1778087439000,-500.0,0.00011506,2]
[421740175,1778087439000,-850.3,0.00011506,2]
[421740174,1778087439000,-500.0,0.00011506,2]
[421740184,1778087439000,-500.0,0.00011506,2]
[421740185,1778087439000,-500.0,0.00011506,2]
[421740186,1778087439000,-500.0,0.00011506,2]
[421740187,1778087439000,-561.05,0.00011506,2]
[421740120,1778087439000,-500.0,0.00011232,2]
[421740176,1778087439000,-500.0,0.00011506,2]
[421740155,1778087439000,-500.0,0.00011506,2]
[421740188,1778087439000,-12248.35022541,0.00011575,2]
[421740154,1778087439000,-500.0,0.00011506,2]
[421740156,1778087439000,-1039.3,0.00011506,2]
[421740125,1778087439000,-158.97,0.00011232,2]
[421740133,1778087439000,-156.39,0.00011348,2]
[421740130,1778087439000,-200.0,0.00011292,2]
[421740126,1778087439000,-152.0,0.00011234,7]
[421740122,1778087439000,-500.0,0.00011232,2]
[421740124,1778087439000,-561.05,0.00011232,2]
[421740131,1778087439000,-156.14,0.00011321,2]
[421740132,1778087439000,-200.0,0.00011345,2]
[421740135,1778087439000,-157.75,0.00011478,2]
[421740134,1778087439000,-156.81,0.00011403,2]
[421740136,1778087439000,-160.25,0.000115,2]
[421740137,1778087439000,-560.66,0.00011506,2]
[421740138,1778087439000,-500.0,0.00011506,2]
[421740139,1778087439000,-563.19,0.00011506,2]
[421740123,1778087439000,-500.0,0.00011232,2]
[421740140,1778087439000,-500.0,0.00011506,2]
[421740141,1778087439000,-500.0,0.00011506,2]
[421740151,1778087439000,-446.57475634,0.00011506,2]
[421740147,1778087439000,-500.0,0.00011506,2]
[421740153,1778087439000,-609.56,0.00011506,2]
[421740150,1778087439000,-500.0,0.00011506,2]
[421740145,1778087439000,-500.0,0.00011506,2]
[421740142,1778087439000,-500.0,0.00011506,2]
[421740144,1778087439000,-1370.764,0.00011506,2]
[421740148,1778087439000,-500.0,0.00011506,2]
[421740152,1778087439000,-500.0,0.00011506,2]
[421740146,1778087439000,-500.0,0.00011506,2]
[421740143,1778087439000,-500.0,0.00011506,2]
[421740149,1778087439000,-500.0,0.00011506,2]
[421740233,1778087440000,-500.0,0.0001178,2]
[421740231,1778087440000,-500.0,0.0001178,2]
[421740228,1778087440000,-500.0,0.0001178,2]
[421740232,1778087440000,-500.0,0.0001178,2]
[421740239,1778087440000,-1375.47,0.0001178,2]
[421740227,1778087440000,-1364.22,0.0001178,2]
[421740238,1778087440000,-1379.57,0.0001178,2]
[421740240,1778087440000,-711.61,0.0001178,2]
[421740237,1778087440000,-924.46,0.0001178,2]
[421740221,1778087440000,-522.5,0.0001178,2]
[421740225,1778087440000,-415.01656184,0.0001178,2]
[421740241,1778087440000,-1129.07,0.0001178,2]
[421740230,1778087440000,-500.0,0.0001178,2]
[421740245,1778087440000,-561.05,0.0001178,2]
[421740235,1778087440000,-850.3,0.0001178,2]
[421740234,1778087440000,-500.0,0.0001178,2]
[421740236,1778087440000,-500.0,0.0001178,2]
[421740242,1778087440000,-500.0,0.0001178,2]
[421740244,1778087440000,-500.0,0.0001178,2]
[421740246,1778087440000,-200.0,0.00011797,2]
[421740248,1778087440000,-867.1,0.000119,2]
[421740249,1778087440000,-165.6778,0.00011941,2]
[421740251,1778087440000,-161.33,0.00012,2]
[421740243,1778087440000,-500.0,0.0001178,2]
[421740250,1778087440000,-500.0,0.00011966,2]
[421740247,1778087440000,-316.27,0.00011834,2]
[421740226,1778087440000,-500.0,0.0001178,2]
[421740252,1778087440000,-170.52281234,0.00012,2]
[421740229,1778087440000,-568.71,0.0001178,2]
[421740223,1778087440000,-500.0,0.0001178,2]
[421740202,1778087440000,-500.0,0.0001178,2]
[421740222,1778087440000,-470.33363014,0.0001178,2]
[421740254,1778087440000,-560.66,0.00012054,2]
[421740197,1778087440000,-560.66,0.0001178,2]
[421740195,1778087440000,-185.0,0.00011613,2]
[421740192,1778087440000,-150.572,0.00011613,2]
[421740191,1778087440000,-150.494,0.00011613,2]
[421740189,1778087440000,-218.758,0.00011603,2]
[421740194,1778087440000,-442.0,0.00011613,2]
[421740190,1778087440000,-154.66,0.00011613,2]
[421740193,1778087440000,-647.0,0.00011613,2]
[421740205,1778087440000,-1370.764,0.0001178,2]
[421740206,1778087440000,-500.0,0.0001178,2]
[421740200,1778087440000,-500.0,0.0001178,2]
[421740208,1778087440000,-500.0,0.0001178,2]
[421740218,1778087440000,-961.74,0.0001178,2]
[421740207,1778087440000,-500.0,0.0001178,2]
[421740198,1778087440000,-500.0,0.0001178,2]
[421740210,1778087440000,-500.0,0.0001178,2]
[421740209,1778087440000,-500.0,0.0001178,2]
[421740203,1778087440000,-500.0,0.0001178,2]
[421740204,1778087440000,-500.0,0.0001178,2]
[421740213,1778087440000,-609.56,0.0001178,2]
[421740212,1778087440000,-500.0,0.0001178,2]
[421740217,1778087440000,-843.57,0.0001178,2]
[421740220,1778087440000,-500.0,0.0001178,2]
[421740214,1778087440000,-500.0,0.0001178,2]
[421740215,1778087440000,-500.0,0.0001178,2]
[421740219,1778087440000,-500.0,0.0001178,2]
[421740216,1778087440000,-1039.3,0.0001178,2]
[421740211,1778087440000,-500.0,0.0001178,2]
[421740253,1778087440000,-155.0,0.00012053,2]
[421740315,1778087440000,-609.56,0.00012328,2]
[421740258,1778087440000,-500.0,0.00012054,2]
[421740291,1778087440000,-1375.47,0.00012054,2]
[421740301,1778087440000,-500.0,0.00012328,2]
[421740302,1778087440000,-1049.0,0.00012328,2]
[421740290,1778087440000,-1379.57,0.00012054,2]
[421740297,1778087440000,-561.05,0.00012054,2]
[421740292,1778087440000,-711.61,0.00012054,2]
[421740295,1778087440000,-500.0,0.00012054,2]
[421740294,1778087440000,-500.0,0.00012054,2]
[421740293,1778087440000,-1129.07,0.00012054,2]
[421740296,1778087440000,-500.0,0.00012054,2]
[421740298,1778087440000,-13216.21824345,0.00012087,2]
[421740300,1778087440000,-560.66,0.00012328,2]
[421740313,1778087440000,-500.0,0.00012328,2]
[421740288,1778087440000,-500.0,0.00012054,2]
[421740308,1778087440000,-500.0,0.00012328,2]
[421740314,1778087440000,-500.0,0.00012328,2]
[421740311,1778087440000,-500.0,0.00012328,2]
[421740309,1778087440000,-500.0,0.00012328,2]
[421740318,1778087440000,-1039.3,0.00012328,2]
[421740312,1778087440000,-500.0,0.00012328,2]
[421740305,1778087440000,-500.0,0.00012328,2]
[421740307,1778087440000,-1370.764,0.00012328,2]
[421740306,1778087440000,-500.0,0.00012328,2]
[421740310,1778087440000,-500.0,0.00012328,2]
[421740303,1778087440000,-500.0,0.00012328,2]
[421740317,1778087440000,-500.0,0.00012328,2]
[421740316,1778087440000,-500.0,0.00012328,2]
[421740255,1778087440000,-500.0,0.00012054,2]
[421740304,1778087440000,-500.0,0.00012328,2]
[421740284,1778087440000,-500.0,0.00012054,2]
[421740299,1778087440000,-200.0,0.00012248,2]
[421740286,1778087440000,-500.0,0.00012054,2]
[421740257,1778087440000,-500.0,0.00012054,2]
[421740289,1778087440000,-924.46,0.00012054,2]
[421740262,1778087440000,-500.0,0.00012054,2]
[421740261,1778087440000,-500.0,0.00012054,2]
[421740260,1778087440000,-1370.764,0.00012054,2]
[421740264,1778087440000,-500.0,0.00012054,2]
[421740268,1778087440000,-609.56,0.00012054,2]
[421740256,1778087440000,-500.0,0.00012054,2]
[421740266,1778087440000,-500.0,0.00012054,2]
[421740267,1778087440000,-500.0,0.00012054,2]
[421740263,1778087440000,-500.0,0.00012054,2]
[421740265,1778087440000,-500.0,0.00012054,2]
[421740270,1778087440000,-500.0,0.00012054,2]
[421740280,1778087440000,-500.0,0.00012054,2]
[421740269,1778087440000,-500.0,0.00012054,2]
[421740259,1778087440000,-500.0,0.00012054,2]
[421740281,1778087440000,-568.71,0.00012054,2]
[421740271,1778087440000,-1039.3,0.00012054,2]
[421740285,1778087440000,-500.0,0.00012054,2]
[421740282,1778087440000,-500.0,0.00012054,2]
[421740283,1778087440000,-500.0,0.00012054,2]
[421740277,1778087440000,-500.0,0.00012054,2]
[421740279,1778087440000,-1364.22,0.00012054,2]
[421740274,1778087440000,-500.0,0.00012054,2]